bitfinex-derivatives/quotes_BTCF0:USTF0_20260113
["timestamp","ask_amount","ask_price","bid_price","bid_amount"]
[1768310899988,0.010866,92119.0,92100.0,0.13097585]
[1768310900185,0.010866,92119.0,92102.0,0.010868]
[1768310900387,0.09784216,92178.0,92100.0,0.13097585]
[1768310900388,0.13097585,92160.0,92109.0,0.13097585]
[1768310900680,0.010864,92131.0,92120.0,0.13097585]
[1768310900886,0.13097585,92140.0,92120.0,0.13097585]
[1768310901382,0.010864,92136.0,92121.0,0.010866]
[1768310903493,0.13097585,92140.0,92120.0,0.13097585]
[1768310903789,0.13097585,92130.0,92118.0,0.010866]
[1768310904380,0.13097585,92130.0,92115.0,0.010866]
[1768310904777,0.13097585,92130.0,92084.0,0.01087]
[1768310904983,0.13097585,92130.0,92115.0,0.010866]
[1768310905390,0.13097585,92130.0,92101.0,0.010868]
[1768310905590,0.13097585,92130.0,92110.0,0.13097585]
[1768310906592,0.13297585,92130.0,92110.0,0.13097585]
[1768310907088,0.14384085,92130.0,92112.0,0.010867]
[1768310907284,0.010865,92128.0,92112.0,0.010867]
[1768310907897,0.13297585,92130.0,92110.0,0.13097585]
[1768310907898,0.13297585,92130.0,92114.0,0.010866]
[1768310908883,0.13197585,92130.0,92114.0,0.010866]
[1768310909694,0.13097585,92130.0,92114.0,0.010866]
[1768310910294,0.010865,92131.0,92114.0,0.010866]
[1768310911391,0.010864,92133.0,92120.0,0.13097585]
[1768310911984,0.010864,92133.0,92120.0,0.11497585]
[1768310912694,0.010864,92136.0,92120.0,0.11497585]
[1768310912892,0.010864,92134.0,92121.0,0.010866]
[1768310914193,0.13097585,92140.0,92106.0,0.010867]
[1768310914393,0.010864,92133.0,92120.0,0.13097585]
[1768310914897,0.010864,92133.0,92119.0,0.010866]
[1768310915594,0.011864,92133.0,92120.0,0.13097585]
[1768310915795,0.010864,92131.0,92116.0,0.010866]
[1768310915987,0.010864,92131.0,92120.0,0.13097585]
[1768310916189,0.010864,92134.0,92120.0,0.13097585]
[1768310916788,0.010864,92136.0,92110.0,0.13097585]
[1768310916988,0.010864,92135.0,92120.0,0.13097585]
[1768310917495,0.010863,92142.0,92126.0,0.010865]
[1768310917800,0.010863,92142.0,92130.0,0.13097585]
[1768310918096,0.010861,92158.0,92132.0,0.13097585]
[1768310918302,0.010862,92149.0,92135.0,0.010864]
[1768310918692,0.01086,92167.0,92139.0,0.13097585]
[1768310919000,0.010862,92150.0,92139.0,0.13097585]
[1768310919792,0.010862,92150.0,92135.0,0.010864]
[1768310920103,0.010862,92150.0,92140.0,0.13097585]
[1768310920303,0.010862,92150.0,92135.0,0.010864]
[1768310920497,0.010862,92150.0,92140.0,0.13097585]
[1768310921294,0.010862,92150.0,92135.0,0.010864]
[1768310921494,0.010862,92153.0,92137.0,0.010864]
[1768310921895,0.010862,92153.0,92140.0,0.13197585]
[1768310922099,0.010862,92151.0,92140.0,0.001]
[1768310922299,0.010862,92151.0,92140.0,0.13197585]
[1768310922517,0.010862,92151.0,92140.0,0.13097585]
[1768310924517,0.13097585,92160.0,92140.0,0.13097585]
[1768310924719,0.13097585,92180.0,92150.0,0.13097585]
[1768310924917,0.010861,92161.0,92140.0,0.13197585]
[1768310925108,0.010861,92159.0,92140.0,0.13197585]
[1768310925309,0.010861,92159.0,92140.0,0.001]
[1768310925613,0.010861,92159.0,92133.0,0.010864]
[1768310926113,0.001,92160.0,92146.0,0.010863]
[1768310926419,0.010861,92157.0,92127.0,0.010865]
[1768310926712,0.001,92160.0,92127.0,0.010865]
[1768310927117,0.010859,92180.0,92137.0,0.010864]
[1768310927419,0.010862,92154.0,92137.0,0.010864]
[1768310927623,0.010862,92154.0,92139.0,0.010864]
[1768310927824,0.010861,92157.0,92139.0,0.010864]
[1768310928012,0.010861,92157.0,92140.0,0.010863]
[1768310929119,0.010861,92157.0,92142.0,0.010863]
[1768310929324,0.010861,92160.0,92142.0,0.010863]
[1768310929524,0.010862,92156.0,92142.0,0.010863]
[1768310930019,0.010862,92156.0,92139.0,0.011863]
[1768310930222,0.010862,92156.0,92139.0,0.010863]
[1768310931022,0.013862,92156.0,92139.0,0.010863]
[1768310931727,0.010862,92156.0,92139.0,0.010863]
[1768310932024,0.012862,92156.0,92141.0,0.010863]
[1768310933326,0.010862,92156.0,92141.0,0.011863]
[1768310933526,0.010862,92155.0,92141.0,0.001]
[1768310934024,0.010861,92157.0,92141.0,0.011863]
[1768310934724,0.010861,92157.0,92143.0,0.010863]
[1768310934925,0.010861,92160.0,92143.0,0.010863]
[1768310935126,0.010861,92159.0,92143.0,0.010863]
[1768310936127,0.01086,92171.0,92141.0,0.001]
[1768310936326,0.010861,92161.0,92146.0,0.010863]
[1768310936529,0.010861,92160.0,92143.0,0.010863]
[1768310937229,0.010861,92160.0,92146.0,0.010863]
[1768310937425,0.010861,92163.0,92146.0,0.007863]
[1768310937722,0.010861,92161.0,92146.0,0.007863]
[1768310937920,0.010861,92160.0,92146.0,0.007863]
[1768310938322,0.010861,92162.0,92146.0,0.007863]
[1768310938625,0.010861,92160.0,92146.0,0.007863]
[1768310940231,0.010859,92174.0,92146.0,0.001]
[1768310940431,0.010861,92164.0,92149.0,0.010862]
[1768310943430,0.01086,92172.0,92155.0,0.010862]
[1768310943632,0.010859,92182.0,92156.0,0.010861]
[1768310943840,0.01086,92173.0,92156.0,0.010861]
[1768310944133,0.01086,92171.0,92155.0,0.010862]
[1768310944537,0.01086,92169.0,92150.0,0.010862]
[1768310944835,0.01086,92169.0,92152.0,0.010862]
[1768310945234,0.01086,92169.0,92152.0,0.004862]
[1768310945926,0.01086,92172.0,92154.0,0.010862]
[1768310946234,0.001,92169.0,92154.0,0.010862]
[1768310946828,0.01086,92172.0,92154.0,0.010862]
[1768310947035,0.01186,92172.0,92154.0,0.010862]
[1768310948634,0.01086,92172.0,92154.0,0.010862]
[1768310948831,0.01086,92172.0,92154.0,0.011862]
[1768310949137,0.01086,92172.0,92156.0,0.010861]
[1768310949331,0.01086,92171.0,92154.0,0.001]
[1768310949533,0.01086,92171.0,92153.0,0.010862]
[1768310949732,0.010859,92175.0,92158.0,0.010861]
[1768310950636,0.01086,92173.0,92155.0,0.010862]
[1768310952031,0.01086,92171.0,92155.0,0.010862]
[1768310952232,0.01086,92171.0,92158.0,0.001]
[1768310952424,0.09787774,92200.0,92158.0,0.001]
[1768310952629,0.010859,92175.0,92158.0,0.011861]
[1768310953032,0.010859,92175.0,92158.0,0.010861]
[1768310954035,0.010859,92179.0,92155.0,0.001]
[1768310954538,0.010857,92191.0,92155.0,0.001]
[1768310954737,0.001,92175.0,92165.0,0.01086]
[1768310954933,0.001,92175.0,92145.0,0.010863]
[1768310955140,0.001,92175.0,92163.0,0.010861]
[1768310955442,0.010859,92180.0,92163.0,0.010861]
[1768310955630,0.001,92179.0,92163.0,0.010861]
[1768310956340,0.010859,92180.0,92163.0,0.011861]
[1768310956946,0.010858,92189.0,92163.0,0.001]
[1768310957143,0.010859,92179.0,92163.0,0.001]
[1768310957341,0.010859,92177.0,92163.0,0.001]
[1768310957641,0.010859,92178.0,92163.0,0.001]
[1768310957941,0.010859,92178.0,92160.0,0.010861]
[1768310958242,0.010858,92188.0,92149.0,0.010862]
[1768310958937,0.010859,92176.0,92149.0,0.010862]
[1768310959146,0.010859,92175.0,92149.0,0.010862]
[1768310959542,0.010859,92175.0,92158.0,0.010861]
[1768310960045,0.010859,92175.0,92160.0,0.010861]
[1768310960245,0.001,92176.0,92149.0,0.010862]
[1768310960946,0.010859,92175.0,92158.0,0.010861]
[1768310961153,0.001,92176.0,92138.0,0.05901624]
[1768310961448,0.01086,92167.0,92132.0,0.02175715]
[1768310961742,0.010861,92162.0,92144.0,0.010863]
[1768310961950,0.010861,92164.0,92147.0,0.010862]
[1768310962338,0.010861,92164.0,92149.0,0.010862]
[1768310964046,0.002,92164.0,92152.0,0.010862]
[1768310964254,0.002,92164.0,92149.0,0.010862]
[1768310964440,0.002,92164.0,92140.0,0.010863]
[1768310964635,0.01086,92165.0,92140.0,0.010863]
[1768310965746,0.01086,92168.0,92141.0,0.010863]
[1768310965950,0.01086,92166.0,92129.0,0.01077666]
[1768310966148,0.01086,92166.0,92149.0,0.010862]
[1768310966349,0.001,92165.0,92149.0,0.010862]
[1768310966937,0.001,92165.0,92129.0,0.01065152]
[1768310967137,0.001,92165.0,92158.0,0.010861]
[1768310967353,0.010859,92174.0,92158.0,0.010861]
[1768310968054,0.010859,92178.0,92158.0,0.010861]
[1768310968241,0.002,92166.0,92158.0,0.010861]
[1768310968951,0.010859,92178.0,92160.0,0.010861]
[1768310969752,0.010859,92176.0,92160.0,0.010861]
[1768310970463,0.010856,92202.0,92161.0,0.010861]
[1768310970464,0.010857,92193.0,92161.0,0.010861]
[1768310970644,0.010859,92178.0,92136.0,0.05249494]
[1768310970844,0.010859,92178.0,92162.0,0.010861]
[1768310971059,0.010859,92182.0,92158.0,0.001]
[1768310971554,0.010859,92182.0,92164.0,0.01086]
[1768310971856,0.010859,92180.0,92164.0,0.01086]
[1768310972048,0.017857,92193.0,92153.0,0.0510638]
[1768310972348,0.002,92182.0,92144.0,0.010863]
[1768310972558,0.010859,92176.0,92147.0,0.010863]
[1768310972855,0.010859,92176.0,92160.0,0.010861]
[1768310973246,0.002,92182.0,92091.0,0.31204465]
[1768310973247,0.002,92182.0,92123.0,0.010865]
[1768310973647,0.002,92182.0,92138.0,0.10850517]
[1768310973860,0.002,92182.0,92123.0,0.010865]
[1768310974156,0.002,92182.0,92137.0,0.10850812]
[1768310974358,0.005,92193.0,92137.0,0.10850812]
[1768310974657,0.1088,92232.0,92137.0,0.10850812]
[1768310974849,0.010854,92218.0,92137.0,0.10850812]
[1768310975252,0.001,92182.0,92137.0,0.10850812]
[1768310976253,0.001,92182.0,92137.0,0.16034773]
[1768310976656,0.001,92182.0,92137.0,0.05183961]
[1768310976853,0.018854,92218.0,92138.0,0.10850753]
[1768310977053,0.008,92218.0,92138.0,0.11937153]
[1768310977254,0.008,92218.0,92138.0,0.010864]
[1768310977449,0.008,92218.0,92139.0,0.10850753]
[1768310977650,0.088905,92226.0,92139.0,0.10850753]
[1768310977850,0.010853,92231.0,92139.0,0.1595981]
[1768310978359,0.005,92218.0,92139.0,0.1595981]
[1768310979859,0.0855441,92226.0,92139.0,0.1595981]
[1768310980052,0.020853,92231.0,92139.0,0.1595981]
[1768310980255,0.020853,92231.0,92141.0,0.010863]
[1768310980758,0.010853,92231.0,92142.0,0.123392]
[1768310980958,0.005,92218.0,92142.0,0.23187716]
[1768310981260,0.005,92218.0,92143.0,0.010863]
[1768310981559,0.08826922,92228.0,92144.0,0.12538642]
[1768310981760,0.018853,92231.0,92144.0,0.12538642]
[1768310981961,0.018853,92231.0,92144.0,0.23386276]
[1768310983056,0.010853,92231.0,92145.0,0.010863]
[1768310983261,0.003,92218.0,92145.0,0.010863]
[1768310983763,0.010853,92231.0,92146.0,0.10847457]
[1768310983966,0.016853,92231.0,92146.0,0.10847457]
[1768310984260,0.006,92231.0,92149.0,0.010862]
[1768310984659,0.002,92218.0,92150.0,0.12307241]
[1768310984854,0.002,92218.0,92150.0,0.23155404]
[1768310986164,0.08888166,92232.0,92150.0,0.23155404]
[1768310986352,0.004,92231.0,92150.0,0.23155404]
[1768310987454,0.002,92218.0,92150.0,0.23155404]
[1768310989168,0.47380654,92233.0,92150.0,0.23155404]
[1768310989368,0.004,92231.0,92150.0,0.23155404]
[1768310989964,0.08735501,92232.0,92150.0,0.23155404]
[1768310990268,0.003,92218.0,92150.0,0.23155404]
[1768310990767,0.47380654,92233.0,92150.0,0.23155404]
[1768310990968,0.004,92231.0,92150.0,0.23155404]
[1768310992364,0.47380654,92233.0,92150.0,0.23155404]
[1768310992560,0.002,92218.0,92150.0,0.23155404]
[1768310993166,0.46269942,92233.0,92150.0,0.23155404]
[1768310993368,0.005,92231.0,92150.0,0.23155404]
[1768310993971,0.46269942,92233.0,92150.0,0.23155404]
[1768310994175,0.001,92218.0,92150.0,0.23155404]
[1768310995472,0.46269942,92233.0,92150.0,0.23155404]
[1768310995678,0.005,92231.0,92150.0,0.23155404]
[1768310996269,0.002,92218.0,92150.0,0.23155404]
[1768310997068,0.46269942,92233.0,92150.0,0.23155404]
[1768310997269,0.006,92231.0,92150.0,0.23155404]
[1768310997565,0.010853,92230.0,92150.0,0.28352244]
[1768310997773,0.010853,92230.0,92150.0,0.16045003]
[1768310998775,0.003,92218.0,92150.0,0.10848163]
[1768310999072,0.003,92218.0,92150.0,0.05079279]
[1768310999371,0.46269942,92233.0,92151.0,0.10847163]
[1768310999567,0.006,92230.0,92151.0,0.10847163]
[1768311000273,0.004,92218.0,92151.0,0.11933363]
[1768311000468,0.1088,92249.0,92151.0,0.11933363]
[1768311000774,0.00241753,92293.0,92217.0,0.010854]
[1768311000960,0.010846,92292.0,92216.0,0.1088]
[1768311001161,0.054233,92286.0,92218.0,0.11311413]
[1768311001373,0.25291311,92323.0,92236.0,0.010852]
[1768311001676,0.05422,92308.0,92225.0,0.05220114]
[1768311001970,0.010842,92323.0,92235.0,0.010852]
[1768311002168,0.054206,92333.0,92229.0,0.12031566]
[1768311002376,0.054199,92345.0,92244.0,0.010851]
[1768311002571,0.054197,92348.0,92248.0,0.010851]
[1768311002875,0.010838,92361.0,92249.0,0.12938546]
[1768311003175,0.010829,92437.0,92249.0,0.12938546]
[1768311003176,0.04268626,92502.0,92249.0,0.75821283]
[1768311003374,0.1804,92484.0,92351.0,0.065033]
[1768311003568,0.00237749,92535.0,92396.0,0.054168]
[1768311003767,0.00237749,92535.0,92327.0,0.25182407]
[1768311003768,0.01622048,92533.0,92421.0,0.054153]
[1768311003970,0.01622048,92533.0,92352.0,0.12419511]
[1768311003971,0.00540348,92533.0,92408.0,0.00011468]
[1768311004365,0.054091,92529.0,92421.0,0.054154]
[1768311004679,0.064936,92490.0,92408.0,0.00011468]
[1768311004879,0.064935,92491.0,92422.0,0.10816131]
[1768311005079,0.00540348,92533.0,92408.0,0.00011468]
[1768311005080,0.054101,92512.0,92417.0,0.054156]
[1768311005275,0.054111,92495.0,92423.0,0.12377953]
[1768311005471,0.064933,92495.0,92408.0,0.00011468]
[1768311005779,0.00540348,92533.0,92409.0,0.12457427]
[1768311005965,0.054105,92505.0,92415.0,0.010831]
[1768311006167,0.00540348,92533.0,92435.0,0.054145]
[1768311006463,0.00540348,92533.0,92416.0,0.39393996]
[1768311006773,6.5e-07,92513.0,92436.0,0.28577514]
[1768311007074,0.00240348,92533.0,92466.0,0.054127]
[1768311007373,7.2e-07,92565.0,92504.0,0.00013269]
[1768311007566,0.01081,92598.0,92504.0,0.00013269]
[1768311007767,0.04230589,92657.0,92505.0,0.11795924]
[1768311008073,0.010808,92614.0,92506.0,0.10804853]
[1768311008279,0.12399509,92656.0,92545.0,0.054081]
[1768311008472,0.054044,92609.0,92515.0,0.054098]
[1768311008802,0.054073,92560.0,92546.0,5.3e-07]
[1768311008969,0.054105,92505.0,92475.0,1.6e-07]
[1768311009165,0.010821,92499.0,92399.0,0.065]
[1768311009481,0.010817,92535.0,92429.0,0.02689899]
[1768311009675,0.0541,92513.0,92425.0,0.22327672]
[1768311009867,0.0541,92513.0,92422.0,0.01083]
[1768311009868,0.054097,92519.0,92419.0,0.054155]
[1768311010068,0.054089,92533.0,92441.0,0.054142]
[1768311010269,0.054094,92524.0,92434.0,0.054146]
[1768311010576,0.010817,92538.0,92442.0,0.10814435]
[1768311010882,0.010817,92538.0,92372.0,0.08723033]
[1768311010883,0.054075,92557.0,92463.0,0.054129]
[1768311011067,0.054071,92564.0,92463.0,0.064954]
[1768311011274,0.05407,92564.0,92468.0,0.064951]
[1768311011472,0.01289137,92616.0,92468.0,0.054126]
[1768311011473,0.064887,92559.0,92468.0,0.054126]
[1768311011781,0.054049,92601.0,92505.0,0.054105]
[1768311011978,0.05406,92581.0,92483.0,0.05425623]
[1768311012178,0.054055,92591.0,92492.0,0.054112]
[1768311012379,0.054055,92591.0,92483.0,0.01096223]
[1768311012380,0.064872,92581.0,92484.0,0.12525925]
[1768311012681,0.39356,92625.0,92493.0,0.10809233]
[1768311012682,0.054087,92536.0,92493.0,0.10809233]
[1768311012984,0.054081,92547.0,92483.0,0.00013923]
[1768311013168,0.054084,92541.0,92483.0,0.00013923]
[1768311013479,0.010814,92564.0,92483.0,0.00013923]
[1768311013678,0.0424892,92568.0,92484.0,0.10809116]
[1768311013874,0.054063,92576.0,92484.0,0.10809116]
[1768311013875,0.054057,92588.0,92485.0,0.054116]
[1768311014079,0.064872,92581.0,92484.0,0.22193013]
[1768311014279,0.054059,92583.0,92485.0,0.054116]
[1768311014477,0.054053,92595.0,92487.0,0.010823]
[1768311014675,0.054054,92592.0,92486.0,0.054116]
[1768311014884,0.054054,92592.0,92488.0,0.11701441]
[1768311015081,0.064871,92583.0,92488.0,0.10807772]
[1768311015387,0.054079,92549.0,92442.0,0.054141]
[1768311015577,0.054087,92535.0,92430.0,0.064977]
[1768311015880,0.054107,92502.0,92443.0,0.10806254]
[1768311016083,0.054103,92508.0,92407.0,0.054162]
[1768311016291,0.054112,92492.0,92386.0,0.054174]
[1768311016583,0.054113,92492.0,92407.0,0.10812856]
[1768311016790,0.064935,92492.0,92394.0,0.054169]
[1768311016983,0.0541,92513.0,92420.0,0.054154]
[1768311017287,0.054101,92511.0,92409.0,0.054161]
[1768311017472,0.054111,92495.0,92403.0,0.010832]
[1768311017674,0.064924,92506.0,92416.0,0.10816716]
[1768311017881,0.01082,92506.0,92404.0,0.11367036]
[1768311018084,0.01082,92506.0,92416.0,0.010831]
[1768311018287,0.010821,92504.0,92412.0,0.054159]
[1768311018481,0.06492,92513.0,92419.0,0.064986]
[1768311018674,0.01082,92513.0,92419.0,0.064986]
[1768311018878,0.1144655,92576.0,92435.0,0.054145]
[1768311019080,0.010813,92572.0,92474.0,0.054122]
[1768311019283,0.010813,92572.0,92476.0,0.064945]
[1768311019584,0.010811,92588.0,92498.0,0.064929]
[1768311019884,0.010811,92588.0,92477.0,0.12137023]
[1768311019885,0.0429778,92619.0,92553.0,0.054076]
[1768311020085,0.064839,92629.0,92533.0,0.054088]
[1768311020387,0.010806,92629.0,92533.0,0.064905]
[1768311020576,0.054027,92639.0,92536.0,0.064903]
[1768311020884,0.04271737,92661.0,92537.0,0.11330688]
[1768311021190,0.010803,92660.0,92564.0,0.064884]
[1768311021382,0.05858523,92687.0,92590.0,0.010811]
[1768311021582,0.0108,92680.0,92576.0,0.064875]
[1768311021887,0.064821,92653.0,92591.0,0.23039609]
[1768311022079,0.010803,92653.0,92558.0,0.064887]
[1768311022274,0.054006,92675.0,92592.0,0.10796629]
[1768311022582,0.54536,92712.0,92575.0,0.054063]
[1768311022583,0.010802,92660.0,92575.0,0.054063]
[1768311022891,0.010805,92642.0,92560.0,0.10796629]
[1768311023094,0.06483,92642.0,92560.0,0.10796629]
[1768311023387,0.054018,92654.0,92563.0,0.05407]
[1768311023575,0.010802,92662.0,92642.0,1.1e-07]
[1768311023780,0.010803,92654.0,92586.0,0.00011536]
[1768311023986,0.010802,92665.0,92608.0,0.02724932]
[1768311024183,0.010799,92693.0,92599.0,0.01081]
[1768311024484,0.064824,92651.0,92586.0,0.00011536]
[1768311024697,0.054026,92640.0,92586.0,0.00011536]
[1768311024989,0.05402,92651.0,92586.0,0.00011536]
[1768311025195,0.054022,92646.0,92587.0,0.10796804]
[1768311025383,0.064827,92646.0,92586.0,0.00011536]
[1768311025587,0.010808,92612.0,92586.0,3.6e-07]
[1768311025784,0.054048,92602.0,92508.0,0.064923]
[1768311025987,0.05405,92599.0,92508.0,0.01082]
[1768311026183,0.010811,92591.0,92523.0,0.1079762]
[1768311026386,0.010809,92601.0,92509.0,0.12519774]
[1768311026588,0.010809,92601.0,92509.0,0.11437774]
[1768311026589,0.064858,92601.0,92509.0,0.11437774]
[1768311026784,0.4,92601.0,92502.0,0.10804386]
[1768311026982,0.064867,92589.0,92490.0,0.064935]
[1768311027181,0.064867,92589.0,92496.0,0.22855594]
[1768311027396,0.064867,92589.0,92496.0,0.10804795]
[1768311027596,0.064867,92589.0,92490.0,0.010822]
[1768311027797,0.010812,92578.0,92496.0,0.10804795]
[1768311027995,0.064885,92564.0,92496.0,0.11645448]
[1768311028194,0.010814,92559.0,92461.0,0.010826]
[1768311028388,0.064887,92559.0,92461.0,0.010826]
[1768311028692,0.010812,92581.0,92484.0,0.064939]
[1768311028897,0.064864,92592.0,92502.0,0.010821]
[1768311029098,0.010812,92578.0,92488.0,0.010822]
[1768311029297,0.054062,92578.0,92503.0,0.10807013]
[1768311029492,0.010816,92546.0,92482.0,0.11948773]
[1768311029692,0.010818,92531.0,92441.0,0.0506107]
[1768311029890,0.064908,92531.0,92442.0,1.5]
[1768311030290,0.010818,92524.0,92441.0,0.0506107]
[1768311030489,0.064912,92524.0,92441.0,0.0506107]
[1768311030690,0.010818,92524.0,92442.0,1.5]
[1768311030890,0.010817,92540.0,92444.0,0.010828]
[1768311031090,0.010817,92538.0,92444.0,0.010828]
[1768311031404,0.010821,92503.0,92445.0,0.12220226]
[1768311031595,0.010823,92486.0,92407.0,0.00012244]
[1768311031798,0.09736,92502.0,92410.0,0.10812798]
[1768311031799,0.06495,92471.0,92410.0,0.10812798]
[1768311032104,0.06495,92471.0,92407.0,0.00012244]
[1768311032105,0.010826,92457.0,92407.0,0.00012244]
[1768311032291,0.09736,92456.0,92407.0,0.00012244]
[1768311032487,0.09736,92455.0,92407.0,0.00012244]
[1768311033407,0.010827,92448.0,92407.0,0.00012244]
[1768311033705,0.09736,92455.0,92407.0,0.00012244]
[1768311034003,0.05414,92445.0,92407.0,4.4e-07]
[1768311034193,0.054142,92441.0,92407.0,4.4e-07]
[1768311034392,0.010834,92389.0,92373.0,8.4e-07]
[1768311034595,0.0974,92395.0,92353.0,8.5e-07]
[1768311034796,0.010837,92365.0,92353.0,8.5e-07]
[1768311035003,0.0974,92394.0,92332.0,0.010841]
[1768311035199,0.010837,92368.0,92324.0,0.010842]
[1768311035507,0.054189,92362.0,92295.0,0.00251324]
[1768311035803,0.01084,92337.0,92325.0,9e-07]
[1768311035987,7.852e-05,92336.0,92325.0,9e-07]
[1768311036189,0.010837,92363.0,92325.0,9e-07]
[1768311036395,0.0974,92374.0,92325.0,9e-07]
[1768311036690,0.054184,92369.0,92325.0,9e-07]
[1768311036893,0.010834,92388.0,92325.0,9e-07]
[1768311036894,0.010838,92353.0,92325.0,9e-07]
[1768311037107,0.010839,92350.0,92325.0,9e-07]
[1768311037292,0.09748413,92352.0,92325.0,9e-07]
[1768311037293,0.010839,92347.0,92325.0,9e-07]
[1768311037494,4.413e-05,92346.0,92295.0,0.00251324]
[1768311037689,0.054211,92323.0,92285.0,2.9e-07]
[1768311037902,4.413e-05,92346.0,92285.0,2.9e-07]
[1768311037903,0.010845,92298.0,92285.0,2.9e-07]
[1768311038101,0.09744,92303.0,92249.0,0.010851]
[1768311038406,0.0542,92343.0,92267.0,0.010848]
[1768311038407,0.010842,92324.0,92267.0,0.010848]
[1768311038599,0.09753782,92323.0,92275.0,0.010847]
[1768311038811,0.09753782,92323.0,92266.0,0.010848]
[1768311038987,0.010843,92314.0,92257.0,0.01085]
[1768311039192,9.227e-05,92313.0,92264.0,0.010849]
[1768311039494,0.010843,92312.0,92266.0,0.10834353]
[1768311039894,9.227e-05,92313.0,92266.0,0.10824353]
[1768311040102,9.227e-05,92313.0,92275.0,0.010847]
[1768311040401,9.227e-05,92313.0,92257.0,0.01085]
[1768311040596,0.010843,92311.0,92257.0,0.01085]
[1768311040797,9.227e-05,92313.0,92266.0,0.51920427]
[1768311040992,9.227e-05,92313.0,92273.0,0.010848]
[1768311041198,9.227e-05,92313.0,92266.0,0.50835527]
[1768311041399,0.010841,92335.0,92287.0,0.010846]
[1768311042096,0.09748,92338.0,92293.0,0.010845]
[1768311042297,8.143e-05,92337.0,92293.0,0.010845]
[1768311043093,0.010838,92352.0,92294.0,0.4]
[1768311043299,0.010839,92349.0,92294.0,0.23180174]
[1768311043501,0.010839,92351.0,92306.0,0.010844]
[1768311043810,0.010836,92373.0,92325.0,0.010842]
[1768311043995,0.010837,92363.0,92355.0,1.3e-07]
[1768311044397,0.010836,92370.0,92355.0,0.10827213]
[1768311044804,0.010837,92364.0,92355.0,1.3e-07]
[1768311045002,0.010837,92364.0,92320.0,0.010842]
[1768311045200,0.108272,92363.0,92304.0,9.609e-05]
[1768311045416,0.01084,92336.0,92304.0,9.609e-05]
[1768311045598,0.054184,92370.0,92306.0,0.010844]
[1768311045797,0.054115,92487.0,92305.0,0.10827256]
[1768311045798,0.010837,92363.0,92305.0,0.10827256]
[1768311046001,0.010838,92360.0,92318.0,0.010842]
[1768311046210,0.010836,92375.0,92305.0,0.10830246]
[1768311046417,0.010836,92375.0,92339.0,0.01084]
[1768311046616,0.010836,92372.0,92332.0,0.010841]
[1768311046915,0.108272,92380.0,92324.0,0.010842]
[1768311047319,0.010837,92368.0,92329.0,0.010841]
[1768311047509,0.010837,92363.0,92322.0,0.010842]
[1768311047706,0.108272,92380.0,92318.0,0.010842]
[1768311047707,0.010838,92353.0,92318.0,0.010842]
[1768311047907,0.01084,92342.0,92306.0,0.22151238]
[1768311048209,0.010836,92376.0,92226.0,0.010853]
[1768311048210,0.01084,92341.0,92270.0,0.054242]
[1768311048403,0.09752,92347.0,92305.0,0.010844]
[1768311048612,0.09752,92349.0,92304.0,0.01094009]
[1768311048909,0.09752,92349.0,92313.0,0.010843]
[1768311049109,0.01084,92343.0,92311.0,0.010843]
[1768311049707,0.01084,92339.0,92304.0,9.609e-05]
[1768311049917,0.108272,92347.0,92304.0,9.609e-05]
[1768311050106,0.108272,92348.0,92304.0,9.609e-05]
[1768311050416,0.010846,92292.0,92259.0,0.010849]
[1768311050613,0.108272,92347.0,92264.0,0.09752]
[1768311050808,0.108272,92346.0,92282.0,0.10831713]
[1768311051116,0.29315998,92340.0,92280.0,0.010847]
[1768311051310,0.010841,92331.0,92294.0,0.010845]
[1768311051504,0.010841,92330.0,92293.0,0.010845]
[1768311051706,0.09752,92336.0,92293.0,0.010845]
[1768311051707,0.010841,92327.0,92293.0,0.010845]
[1768311051906,9.609e-05,92329.0,92297.0,0.010845]
[1768311052101,0.108272,92328.0,92155.0,0.0544]
[1768311052306,0.010841,92334.0,92290.0,0.29315998]
[1768311052605,0.119112,92335.0,92300.0,0.010844]
[1768311052915,0.010841,92329.0,92266.0,0.054245]
[1768311053106,0.108272,92335.0,92310.0,0.29315998]
[1768311053302,0.108272,92334.0,92318.0,0.010842]
[1768311053507,0.01084,92343.0,92313.0,0.010843]
[1768311053717,0.01084,92339.0,92306.0,0.010844]
[1768311053910,0.010841,92330.0,92299.0,0.010845]
[1768311054219,0.09756,92329.0,92292.0,0.09756]
[1768311054413,0.010841,92327.0,92295.0,0.010845]
[1768311054613,0.010791,92327.0,92299.0,0.010845]
[1768311054813,0.108272,92326.0,92299.0,0.010845]
[1768311055015,0.108272,92327.0,92307.0,0.010844]
[1768311055216,0.108272,92327.0,92290.0,0.29315998]
[1768311055217,0.01084,92339.0,92310.0,0.29315998]
[1768311055414,0.010837,92364.0,92310.0,0.29315998]
[1768311055615,0.054189,92362.0,92291.0,0.2319424]
[1768311055813,0.010842,92322.0,92290.0,0.29315998]
[1768311056015,0.09215068,92321.0,92294.0,0.010845]
[1768311056222,0.108272,92359.0,92291.0,0.10832769]
[1768311056419,0.010839,92345.0,92315.0,0.010843]
[1768311056608,0.09756,92344.0,92310.0,0.29315998]
[1768311056811,0.010838,92358.0,92290.0,0.29315998]
[1768311056812,0.205832,92343.0,92290.0,0.29315998]
[1768311057014,0.108272,92342.0,92302.0,0.010844]
[1768311057214,0.108272,92342.0,92296.0,0.010845]
[1768311057410,0.108272,92341.0,92299.0,0.010845]
[1768311057617,0.010842,92319.0,92290.0,0.010846]
[1768311057818,0.010841,92328.0,92301.0,0.010844]
[1768311058014,0.010842,92326.0,92296.0,0.010845]
[1768311058219,0.09756,92325.0,92290.0,0.29315998]
[1768311058417,0.108402,92325.0,92290.0,0.29315998]
[1768311058620,0.108272,92324.0,92300.0,0.29315998]
[1768311058822,0.108272,92324.0,92300.0,0.30400398]
[1768311059017,0.01084,92341.0,92311.0,0.010843]
[1768311059317,0.054171,92392.0,92304.0,0.010844]